[Event "Marienbad A1-GM 2024"]
[Site "Marianske Lazne"]
[Date "2024.01.13"]
[Round "1.1"]
[White "Pang, Tao"]
[Black "Kusa, Jakub"]
[Result "1-0"]
[ECO "D31"]
[WhiteElo "2430"]
[BlackElo "2350"]
[Annotator "ChessBase"]
[PlyCount "87"]
[EventDate "2024.01.10"]
[EventType "tourn"]
[EventCountry "CZE"]
[SourceTitle "playchess.com"]
[Source "ChessBase"]
[SourceQuality "1"]
[TimeControl "40/5400+30:1800+30"]

1. c4 {[%emt 0:00:12]} e6 {[%emt 0:00:28]} 2. Nc3 {[%emt 0:00:34]} d5 {[%emt 0:00:12]} 3. d4 {[%emt 0:00:22]} a6 {[%emt 0:01:27]} 4. cxd5 {[%emt 0:01:45]} exd5 {[%emt 0:00:10]} 5. Nf3 {[%emt 0:01:55]} Nf6 {[%emt 0:01:00]} 6. Bg5 {[%emt 0:00:25]} Be6 {[%emt 0:00:47]} 7. e3 {[%emt 0:00:57]} Nbd7 {[%emt 0:00:57]} 8. h3 {[%emt 0:00:19]} c6 {[%emt 0:01:34]} 9. Bd3 {[%emt 0:00:26]} Bd6 {[%emt 0:00:39]} 10. Bf4 {[%emt 0:00:58]} Qc7 {[%emt 0:00:26]} 11. Bxd6 {[%emt 0:00:33]} Qxd6 {[%emt 0:00:09]} 12. Qc2 {[%emt 0:02:30]} h6 {[%emt 0:06:19]} 13. O-O {[%emt 0:01:02]} O-O {[%emt 0:00:50]} 14. Rfc1 {[%emt 0:05:02]} Nb6 {[%emt 0:09:17]} 15. Rab1 {[%emt 0:13:23]} Qc7 {[%emt 0:03:42]} 16. a4 {[%emt 0:07:48]} Ne8 {[%emt 0:08:49]} 17. a5 {[%emt 0:04:38]} Nd7 {[%emt 0:01:45]} 18. b4 {[%emt 0:03:17]} Nd6 {[%emt 0:00:52]} 19. Na4 {[%emt 0:02:13]} Rfe8 {[%emt 0:05:58]} 20. Ne5 {[%emt 0:02:06]} Rad8 {[%emt 0:11:17]} 21. Nc5 {[%emt 0:06:40]} Nf8 {[%emt 0:01:52]} 22. Nxa6 {[%emt 0:13:25]} bxa6 {[%emt 0:02:00]} 23. Bxa6 {[%emt 0:00:05]} Bf5 {[%emt 0:03:18]} 24. Bd3 {[%emt 0:00:03]} Bxd3 {[%emt 0:01:57]} 25. Qxd3 {[%emt 0:00:02]} Rxe5 {[%emt 0:02:31]} 26. dxe5 {[%emt 0:00:01]} Nc4 {[%emt 0:00:18]} 27. f4 {[%emt 0:01:26]} Ne6 {[%emt 0:00:42]} 28. Kh1 {[%emt 0:00:40]} c5 {[%emt 0:05:01]} 29. a6 {[%emt 0:07:36]} cxb4 {[%emt 0:01:35]} 30. Rxb4 {[%emt 0:00:14]} Qa5 {[%emt 0:08:03]} 31. Rcb1 {[%emt 0:01:25]} Qxa6 {[%emt 0:03:38]} 32. Rb8 {[%emt 0:00:14]} Qa5 {[%emt 0:01:35]} 33. Kh2 {[%emt 0:08:00]} Qc7 {[%emt 0:09:44]} 34. Rxd8+ {[%emt 0:00:04]} Qxd8 {[%emt 0:00:10]} 35. Rb5 {[%emt 0:00:52]} Nc7 {[%emt 0:02:28]} 36. Rc5 {[%emt 0:00:01]} Qe7 {[%emt 0:01:47]} 37. Rc6 {[%emt 0:00:09]} g6 {[%emt 0:01:56]} 38. e4 {[%emt 0:01:16]} Na5 {[%emt 0:01:09]} 39. Rc1 {[%emt 0:01:39]} d4 {[%emt 0:01:55]} 40. Qxd4 {[%emt 0:01:02]} Ne6 {[%emt 0:00:26]} 41. Qd5 {[%emt 0:31:26]} Nb7 {[%emt 0:04:33]} 42. f5 {[%emt 0:00:00]} Nf8 {[%emt 0:04:39]} 43. Rc8 {[%emt 0:00:00]} Kh7 {[%emt 0:02:06]} 44. f6 {[%emt 0:00:00]} 1-0

[Event "Marienbad A1-GM 2024"]
[Site "Marianske Lazne"]
[Date "2024.01.13"]
[Round "1.2"]
[White "Natsidis, Christoph"]
[Black "Neuman, Petr"]
[Result "1/2-1/2"]
[ECO "D10"]
[WhiteElo "2324"]
[BlackElo "2398"]
[Annotator "TA"]
[PlyCount "24"]
[EventDate "2024.01.10"]
[EventType "tourn"]
[EventCountry "CZE"]
[SourceTitle "playchess.com"]
[Source "ChessBase"]
[SourceQuality "1"]
[TimeControl "40/5400+30:1800+30"]

{[%evp 16,24,31,9,6,2,5,0,0,0,8]} 1. d4 {[%emt 0:00:03]} d5 {[%emt 0:00:04]} 2. c4 {[%emt 0:00:06]} c6 {[%emt 0:00:02]} 3. cxd5 {[%emt 0:00:52]} cxd5 {[%emt 0:00:05]} 4. Nc3 {[%emt 0:00:12]} Nf6 {[%emt 0:00:06]} 5. Bf4 {[%emt 0:00:22]} Nc6 {[%emt 0:00:07]} 6. e3 {[%emt 0:00:07]} Bg4 {[%emt 0:00:14]} 7. Qb3 {[%emt 0:01:47]} Na5 {[%emt 0:01:30]} 8. Bb5+ {[%emt 0:01:16]} Bd7 {[%emt 0:00:14]} 9. Qa4 {[%emt 0:04:42]} e6 {[%emt 0:02:04] The position is equal.} 10. Nf3 {[%emt 0:06:10]} a6 {[%emt 0:03:15]} 11. Bxd7+ {[%emt 0:00:07]} Nxd7 {[%emt 0:00:05]} 12. O-O {[%emt 0:01:16]} Be7 {[%emt 0:01:09] A rather calm draw.   Weighted Error Value: White=0.07 (flawless) /Black=0.00 (flawless) .  OK:         	White=3     	Black=2} 1/2-1/2

[Event "Marienbad A1-GM 2024"]
[Site "Marianske Lazne"]
[Date "2024.01.13"]
[Round "1.3"]
[White "Stein, Robert"]
[Black "Samani, Yamac"]
[Result "0-1"]
[ECO "E06"]
[WhiteElo "2429"]
[BlackElo "2380"]
[Annotator "ChessBase"]
[PlyCount "94"]
[EventDate "2024.01.10"]
[EventType "tourn"]
[EventCountry "CZE"]
[SourceTitle "playchess.com"]
[Source "ChessBase"]
[SourceQuality "1"]
[TimeControl "40/5400+30:1800+30"]

1. d4 {[%emt 0:00:01]} Nf6 {[%emt 0:07:32]} 2. c4 {[%emt 0:01:31]} e6 {[%emt 0:00:09]} 3. g3 {[%emt 0:00:12]} d5 {[%emt 0:00:06]} 4. Bg2 {[%emt 0:00:29]} Be7 {[%emt 0:00:10]} 5. Nf3 {[%emt 0:00:07]} O-O {[%emt 0:00:07]} 6. O-O {[%emt 0:00:15]} dxc4 {[%emt 0:00:22]} 7. Qc2 {[%emt 0:00:09]} a6 {[%emt 0:00:25]} 8. a4 {[%emt 0:00:16]} Bd7 {[%emt 0:00:32]} 9. Qxc4 {[%emt 0:00:14]} Bc6 {[%emt 0:00:13]} 10. Bg5 {[%emt 0:01:40]} Nbd7 {[%emt 0:00:34]} 11. Nc3 {[%emt 0:03:55]} h6 {[%emt 0:00:43]} 12. Bxf6 {[%emt 0:05:49]} Nxf6 {[%emt 0:00:10]} 13. Rfe1 {[%emt 0:18:28]} Bd5 {[%emt 0:08:11]} 14. Qd3 {[%emt 0:09:24]} Bxf3 {[%emt 0:01:07]} 15. Bxf3 {[%emt 0:00:37]} c6 {[%emt 0:00:11]} 16. e3 {[%emt 0:04:07]} a5 {[%emt 0:01:57]} 17. h4 {[%emt 0:03:49]} h5 {[%emt 0:09:00]} 18. Red1 {[%emt 0:04:43]} g6 {[%emt 0:04:15]} 19. Qc2 {[%emt 0:17:59]} Qb6 {[%emt 0:04:06]} 20. Rac1 {[%emt 0:03:39]} Rac8 {[%emt 0:04:16]} 21. Ne2 {[%emt 0:02:17]} Nd5 {[%emt 0:03:14]} 22. Bxd5 {[%emt 0:03:59]} exd5 {[%emt 0:02:56]} 23. Nf4 {[%emt 0:03:00]} Qd8 {[%emt 0:02:12]} 24. Qb3 {[%emt 0:02:55]} Rb8 {[%emt 0:22:32]} 25. e4 {[%emt 0:01:04]} Bd6 {[%emt 0:01:28]} 26. e5 {[%emt 0:00:18]} Bb4 {[%emt 0:01:40]} 27. Qd3 {[%emt 0:02:31]} Re8 {[%emt 0:02:43]} 28. Rc2 {[%emt 0:02:39]} Bf8 {[%emt 0:00:29]} 29. Re2 {[%emt 0:00:31]} Bh6 {[%emt 0:00:49]} 30. Nh3 {[%emt 0:00:59]} Re6 {[%emt 0:03:36]} 31. Rde1 {[%emt 0:01:13]} b5 {[%emt 0:01:15]} 32. axb5 {[%emt 0:03:38]} Rxb5 {[%emt 0:00:05]} 33. f4 {[%emt 0:03:50]} Qb6 {[%emt 0:01:13]} 34. Re3 {[%emt 0:00:33]} Rxb2 {[%emt 0:01:06]} 35. Ng5 {[%emt 0:00:33]} Bxg5 {[%emt 0:00:41]} 36. hxg5 {[%emt 0:00:12]} Qb4 {[%emt 0:03:27]} 37. Qc3 {[%emt 0:00:42]} Rd2 {[%emt 0:02:09]} 38. Rc1 {[%emt 0:00:33]} Rxd4 {[%emt 0:01:15]} 39. Qxb4 {[%emt 0:00:32]} axb4 {[%emt 0:00:41]} 40. Rb3 {[%emt 0:00:07]} h4 {[%emt 0:03:31]} 41. Kf2 {[%emt 0:30:15]} Kf8 {[%emt 0:34:12]} 42. Kf3 {[%emt 0:00:00]} hxg3 {[%emt 0:00:00]} 43. Kxg3 {[%emt 0:00:00]} Ke7 {[%emt 0:00:00]} 44. Kg4 {[%emt 0:00:00]} Kd7 {[%emt 0:00:00]} 45. Ra1 {[%emt 0:00:00]} Rxe5 {[%emt 0:00:00]} 46. Ra7+ {[%emt 0:00:00]} Ke6 {[%emt 0:00:00]} 47. Rh3 {[%emt 0:00:00]} Ree4 {[%emt 0:00:00]} 0-1

[Event "Marienbad A1-GM 2024"]
[Site "Marianske Lazne"]
[Date "2024.01.13"]
[Round "1.4"]
[White "Haba, Petr"]
[Black "Stefansson, Hannes"]
[Result "1/2-1/2"]
[ECO "C67"]
[WhiteElo "2437"]
[BlackElo "2498"]
[Annotator "RC"]
[PlyCount "31"]
[EventDate "2024.01.10"]
[EventType "tourn"]
[EventCountry "CZE"]
[SourceTitle "playchess.com"]
[Source "ChessBase"]
[SourceQuality "1"]
[TimeControl "40/5400+30:1800+30"]

1. e4 {[%emt 0:00:15]} e5 {[%emt 0:00:31]} 2. Nf3 {[%emt 0:00:12]} Nc6 {[%emt 0:00:27]} 3. Bb5 {[%emt 0:00:31]} Nf6 {[%emt 0:01:07]} 4. O-O {[%emt 0:01:18]} Nxe4 {[%emt 0:00:24]} 5. Re1 {[%emt 0:01:51]} Nd6 {[%emt 0:00:28]} 6. Nxe5 {[%emt 0:01:06]} Nxe5 {[%emt 0:00:22]} 7. Rxe5+ {[%emt 0:00:05]} Be7 {[%emt 0:00:15]} 8. Bf1 {[%emt 0:03:30]} O-O {[%emt 0:02:38]} 9. Nc3 {[%emt 0:00:23]} Bf6 {[%emt 0:09:55]} 10. Re1 {[%emt 0:00:23]} Ne8 {[%emt 0:17:36]} 11. Nd5 {[%emt 0:06:38]} Bg5 {[%emt 0:02:17]} 12. d4 {[%emt 0:01:56]} Bxc1 {[%emt 0:02:08]} 13. Rxc1 {[%emt 0:01:37]} d6 {[%emt 0:05:02]} 14. Ne7+ {[%emt 0:02:05]} Kh8 {[%emt 0:00:16]} 15. Nxc8 {[%emt 0:00:04]} Rxc8 {[%emt 0:00:43]} 16. c3 {[%emt 0:02:13]} 1/2-1/2

[Event "Marienbad A1-GM 2024"]
[Site "Marianske Lazne"]
[Date "2024.01.13"]
[Round "1.5"]
[White "Haring, Filip"]
[Black "Baenziger, Fabian"]
[Result "1-0"]
[ECO "C50"]
[WhiteElo "2432"]
[BlackElo "2414"]
[Annotator "RC"]
[PlyCount "59"]
[EventDate "2024.01.10"]
[EventType "tourn"]
[EventCountry "CZE"]
[SourceTitle "playchess.com"]
[Source "ChessBase"]
[SourceQuality "1"]
[TimeControl "40/5400+30:1800+30"]

1. e4 {[%emt 0:00:04]} e5 {[%emt 0:00:11]} 2. Nf3 {[%emt 0:00:12]} Nc6 {[%emt 0:00:05]} 3. Bc4 {[%emt 0:01:18]} Nf6 {[%emt 0:00:44]} 4. d3 {[%emt 0:00:15]} Bc5 {[%emt 0:00:07]} 5. O-O {[%emt 0:00:26]} d6 {[%emt 0:00:52]} 6. c3 {[%emt 0:00:26]} a6 {[%emt 0:00:19]} 7. Bb3 {[%emt 0:01:09]} Ba7 {[%emt 0:01:00]} 8. Nbd2 {[%emt 0:00:57]} O-O {[%emt 0:00:17]} 9. Re1 {[%emt 0:01:58]} h6 {[%emt 0:01:55]} 10. Nf1 {[%emt 0:01:07]} Re8 {[%emt 0:01:59]} 11. Ng3 {[%emt 0:05:45]} Be6 {[%emt 0:02:56]} 12. Bc2 {[%emt 0:00:09]} d5 {[%emt 0:06:38]} 13. exd5 {[%emt 0:00:09]} Bxd5 {[%emt 0:02:46]} 14. Nh4 {[%emt 0:06:58]} Bc5 {[%emt 0:12:54]} 15. b4 {[%emt 0:07:09]} Bf8 {[%emt 0:00:08]} 16. Nhf5 {[%emt 0:05:12]} Qd7 {[%emt 0:05:11]} 17. a4 {[%emt 0:02:07]} b5 {[%emt 0:13:51]} 18. Be3 {[%emt 0:10:25]} Rad8 {[%emt 0:07:59]} 19. h3 {[%emt 0:06:06]} Ne7 {[%emt 0:12:38]} 20. Nh4 {[%emt 0:07:59]} g6 {[%emt 0:08:19]} 21. Ne4 {[%emt 0:14:42]} Bg7 {[%emt 0:06:11]} 22. Qc1 {[%emt 0:07:50]} Qc6 {[%emt 0:03:49]} 23. Nc5 {[%emt 0:01:57]} g5 {[%emt 0:02:12]} 24. axb5 {[%emt 0:00:06]} Qxb5 {[%emt 0:00:04]} 25. c4 {[%emt 0:02:49]} Qxb4 {[%emt 0:02:15]} 26. Rb1 {[%emt 0:04:12]} Qa5 {[%emt 0:00:04]} 27. Nb3 {[%emt 0:02:01]} Qb4 {[%emt 0:00:42]} 28. Bc5 {[%emt 0:01:05]} Qc3 {[%emt 0:02:51]} 29. Bxe7 {[%emt 0:00:37]} Rxe7 {[%emt 0:00:06]} 30. Nf5 {[%emt 0:00:03]} 1-0

[Event "Marienbad A1-GM 2024"]
[Site "Marianske Lazne"]
[Date "2024.01.14"]
[Round "2.1"]
[White "Kusa, Jakub"]
[Black "Baenziger, Fabian"]
[Result "1/2-1/2"]
[ECO "D45"]
[WhiteElo "2350"]
[BlackElo "2414"]
[Annotator "RC"]
[PlyCount "129"]
[EventDate "2024.01.10"]
[EventType "tourn"]
[EventCountry "CZE"]
[SourceTitle "playchess.com"]
[Source "ChessBase"]
[SourceQuality "1"]
[TimeControl "40/5400+30:1800+30"]

1. Nf3 {[%emt 0:00:09]} d5 {[%emt 0:01:22]} 2. e3 {[%emt 0:00:21]} Nf6 {[%emt 0:01:56]} 3. c4 {[%emt 0:00:37]} c6 {[%emt 0:00:58]} 4. Nc3 {[%emt 0:00:51]} e6 {[%emt 0:00:05]} 5. d4 {[%emt 0:01:27]} Nbd7 {[%emt 0:00:08]} 6. Qc2 {[%emt 0:00:49]} Bd6 {[%emt 0:00:09]} 7. Bd3 {[%emt 0:00:36]} O-O {[%emt 0:00:26]} 8. O-O {[%emt 0:01:29]} dxc4 {[%emt 0:00:14]} 9. Bxc4 {[%emt 0:00:10]} b5 {[%emt 0:00:04]} 10. Be2 {[%emt 0:01:59]} Bb7 {[%emt 0:00:07]} 11. e4 {[%emt 0:01:13]} e5 {[%emt 0:00:05]} 12. dxe5 {[%emt 0:01:19]} Nxe5 {[%emt 0:00:06]} 13. Nd4 {[%emt 0:00:19]} Neg4 {[%emt 0:01:14]} 14. Nf5 {[%emt 0:00:09]} Bxh2+ {[%emt 0:00:06]} 15. Kh1 {[%emt 0:00:08]} Bb8 {[%emt 0:00:08]} 16. Bg5 {[%emt 0:01:19]} Bc8 {[%emt 0:18:54]} 17. Rad1 {[%emt 0:02:28]} Qc7 {[%emt 0:02:06]} 18. Nd6 {[%emt 0:02:59]} Be6 {[%emt 0:04:00]} 19. Bxf6 {[%emt 0:05:07]} Nxf6 {[%emt 0:01:17]} 20. e5 {[%emt 0:00:20]} Nd5 {[%emt 0:04:03]} 21. Bf3 {[%emt 0:02:52]} Qd8 {[%emt 0:17:08]} 22. Nxd5 {[%emt 0:05:37]} cxd5 {[%emt 0:02:19]} 23. Bxd5 {[%emt 0:02:54]} Bxd6 {[%emt 0:01:35]} 24. exd6 {[%emt 0:04:23]} Rc8 {[%emt 0:05:31]} 25. Qe4 {[%emt 0:04:20]} Qd7 {[%emt 0:10:43]} 26. Rfe1 {[%emt 0:05:28]} Rfe8 {[%emt 0:00:03]} 27. Bxe6 {[%emt 0:02:02]} Rxe6 {[%emt 0:01:21]} 28. Qd5 {[%emt 0:03:42]} Rce8 {[%emt 0:05:17]} 29. Rxe6 {[%emt 0:02:29]} Rxe6 {[%emt 0:00:06]} 30. Qc5 {[%emt 0:01:38]} Re8 {[%emt 0:00:37]} 31. Qc7 {[%emt 0:15:21]} Rd8 {[%emt 0:02:01]} 32. Rd5 {[%emt 0:05:20]} h6 {[%emt 0:08:26]} 33. a3 {[%emt 0:03:42]} Kh7 {[%emt 0:01:57]} 34. Qc2+ {[%emt 0:07:30]} g6 {[%emt 0:01:25]} 35. Qd2 {[%emt 0:00:49]} Qe6 {[%emt 0:06:06]} 36. d7 {[%emt 0:00:58]} a6 {[%emt 0:01:18]} 37. Qd4 {[%emt 0:03:06]} h5 {[%emt 0:01:27]} 38. Kh2 {[%emt 0:01:01]} Kg8 {[%emt 0:02:33]} 39. Rd6 {[%emt 0:03:22]} Qf5 {[%emt 0:01:44]} 40. Rd5 {[%emt 0:01:45]} Qe6 {[%emt 0:00:04]} 41. b3 {[%emt 0:30:28]} Kh7 {[%emt 0:01:23]} 42. a4 {[%emt 0:00:00]} bxa4 {[%emt 0:00:26]} 43. bxa4 {[%emt 0:00:00]} a5 {[%emt 0:05:27]} 44. Qd2 {[%emt 0:00:00]} Qg4 {[%emt 0:02:32]} 45. Rd4 {[%emt 0:00:00]} Qf5 {[%emt 0:00:05]} 46. g3 {[%emt 0:00:00]} Qf6 {[%emt 0:08:26]} 47. Kg1 {[%emt 0:00:00]} Qe5 {[%emt 0:00:53]} 48. Kg2 {[%emt 0:00:00]} Qf5 {[%emt 0:00:19]} 49. Kg1 {[%emt 0:00:00]} Qe5 {[%emt 0:00:10]} 50. Qd3 {[%emt 0:00:00]} Kg7 {[%emt 0:03:18]} 51. Kg2 {[%emt 0:00:00]} Qf6 {[%emt 0:01:05]} 52. Rd6 {[%emt 0:00:00]} Qe5 {[%emt 0:00:54]} 53. Rd5 {[%emt 0:00:00]} Qe6 {[%emt 0:00:01]} 54. Qc3+ {[%emt 0:00:00]} Kh7 {[%emt 0:00:06]} 55. Qxa5 {[%emt 0:00:00]} Rxd7 {[%emt 0:00:13]} 56. Rxd7 {[%emt 0:00:00]} Qxd7 {[%emt 0:00:02]} 57. Qb5 {[%emt 0:00:00]} Qd4 {[%emt 0:02:10]} 58. a5 {[%emt 0:00:00]} Qe4+ {[%emt 0:04:41]} 59. Kh2 {[%emt 0:00:00]} Qf3 {[%emt 0:02:14]} 60. Qb6 {[%emt 0:00:00]} h4 {[%emt 0:00:33]} 61. a6 {[%emt 0:00:00]} hxg3+ {[%emt 0:00:26]} 62. fxg3 {[%emt 0:00:00]} Qe2+ {[%emt 0:00:03]} 63. Kg1 {[%emt 0:00:00]} Qe1+ {[%emt 0:00:04]} 64. Kg2 {[%emt 0:00:00]} Qe2+ {[%emt 0:00:04]} 65. Kg1 {[%emt 0:00:05]} 1/2-1/2

[Event "Marienbad A1-GM 2024"]
[Site "Marianske Lazne"]
[Date "2024.01.14"]
[Round "2.2"]
[White "Stefansson, Hannes"]
[Black "Haring, Filip"]
[Result "0-1"]
[ECO "B12"]
[WhiteElo "2498"]
[BlackElo "2432"]
[Annotator "RC"]
[PlyCount "74"]
[EventDate "2024.01.10"]
[EventType "tourn"]
[EventCountry "CZE"]
[SourceTitle "playchess.com"]
[Source "ChessBase"]
[SourceQuality "1"]
[TimeControl "40/5400+30:1800+30"]

1. e4 {[%emt 0:00:23]} c6 {[%emt 0:00:27]} 2. d4 {[%emt 0:00:58]} d5 {[%emt 0:00:05]} 3. e5 {[%emt 0:00:35]} Bf5 {[%emt 0:00:14]} 4. Nd2 {[%emt 0:01:29]} e6 {[%emt 0:00:28]} 5. Nb3 {[%emt 0:00:57]} Nd7 {[%emt 0:00:14]} 6. Nf3 {[%emt 0:01:19]} h6 {[%emt 0:03:41]} 7. Be2 {[%emt 0:02:25]} Ne7 {[%emt 0:01:47]} 8. O-O {[%emt 0:02:47]} g5 {[%emt 0:04:52]} 9. Ne1 {[%emt 0:06:52]} Qc7 {[%emt 0:05:21]} 10. Bd2 {[%emt 0:07:27]} Bg6 {[%emt 0:12:28]} 11. Rc1 {[%emt 0:13:50]} Nf5 {[%emt 0:06:02]} 12. Bh5 {[%emt 0:09:23]} Bxh5 {[%emt 0:09:02]} 13. Qxh5 {[%emt 0:00:08]} Rg8 {[%emt 0:00:02]} 14. Nd3 {[%emt 0:06:06]} Rg6 {[%emt 0:04:24]} 15. Qe2 {[%emt 0:11:31]} Qb6 {[%emt 0:10:37]} 16. Bc3 {[%emt 0:05:02]} Be7 {[%emt 0:03:27]} 17. a4 {[%emt 0:01:34]} Qa6 {[%emt 0:02:58]} 18. a5 {[%emt 0:01:32]} h5 {[%emt 0:08:00]} 19. Qe1 {[%emt 0:11:11]} Qc4 {[%emt 0:06:14]} 20. Ra1 {[%emt 0:00:57]} h4 {[%emt 0:02:03]} 21. Nd2 {[%emt 0:03:48]} Qb5 {[%emt 0:00:51]} 22. b4 {[%emt 0:02:09]} g4 {[%emt 0:01:46]} 23. a6 {[%emt 0:02:13]} b6 {[%emt 0:02:03]} 24. g3 {[%emt 0:03:30]} O-O-O {[%emt 0:05:17]} 25. Qe2 {[%emt 0:00:45]} Rh8 {[%emt 0:01:21]} 26. Kg2 {[%emt 0:00:50]} Bg5 {[%emt 0:02:20]} 27. Rfd1 {[%emt 0:01:56]} Nf8 {[%emt 0:02:10]} 28. Nf1 {[%emt 0:01:03]} Qc4 {[%emt 0:01:10]} 29. Bb2 {[%emt 0:00:34]} Be7 {[%emt 0:02:02]} 30. c3 {[%emt 0:01:02]} Nh7 {[%emt 0:00:58]} 31. Nf4 {[%emt 0:01:00]} Qxe2 {[%emt 0:00:14]} 32. Nxe2 {[%emt 0:00:04]} Ng5 {[%emt 0:00:43]} 33. Nd2 {[%emt 0:00:17]} Rgh6 {[%emt 0:00:37]} 34. Rh1 {[%emt 0:00:11]} f6 {[%emt 0:02:54]} 35. exf6 {[%emt 0:00:37]} Rxf6 {[%emt 0:00:15]} 36. Rae1 {[%emt 0:01:08]} Nf3 {[%emt 0:00:33]} 37. Nf4 {[%emt 0:00:44]} Nxd2 {[%emt 0:00:23]} 0-1

[Event "Marienbad A1-GM 2024"]
[Site "Marianske Lazne"]
[Date "2024.01.14"]
[Round "2.3"]
[White "Samani, Yamac"]
[Black "Haba, Petr"]
[Result "1/2-1/2"]
[ECO "D27"]
[WhiteElo "2380"]
[BlackElo "2437"]
[Annotator "RC"]
[PlyCount "57"]
[EventDate "2024.01.10"]
[EventType "tourn"]
[EventCountry "CZE"]
[SourceTitle "playchess.com"]
[Source "ChessBase"]
[SourceQuality "1"]
[TimeControl "40/5400+30:1800+30"]

1. Nf3 {[%emt 0:06:08]} d5 {[%emt 0:00:38]} 2. e3 {[%emt 0:00:13]} Nf6 {[%emt 0:01:46]} 3. c4 {[%emt 0:00:21]} dxc4 {[%emt 0:02:53]} 4. Bxc4 {[%emt 0:00:41]} e6 {[%emt 0:00:37]} 5. O-O {[%emt 0:00:29]} c5 {[%emt 0:02:16]} 6. d4 {[%emt 0:00:56]} a6 {[%emt 0:00:24]} 7. Nc3 {[%emt 0:00:41]} b5 {[%emt 0:01:29]} 8. Bb3 {[%emt 0:00:41]} Bb7 {[%emt 0:00:19]} 9. e4 {[%emt 0:02:34]} cxd4 {[%emt 0:05:34]} 10. Nxd4 {[%emt 0:00:54]} Nc6 {[%emt 0:04:17]} 11. Nxc6 {[%emt 0:00:36]} Bxc6 {[%emt 0:00:05]} 12. Qe2 {[%emt 0:05:03]} Be7 {[%emt 0:05:12]} 13. Rd1 {[%emt 0:05:18]} Nd7 {[%emt 0:25:06]} 14. Nd5 {[%emt 0:33:58]} O-O {[%emt 0:05:33]} 15. Nxe7+ {[%emt 0:01:06]} Qxe7 {[%emt 0:00:01]} 16. e5 {[%emt 0:04:30]} Rfc8 {[%emt 0:06:12]} 17. Bf4 {[%emt 0:04:28]} Nf8 {[%emt 0:08:47]} 18. Bg3 {[%emt 0:02:59]} a5 {[%emt 0:03:15]} 19. Rac1 {[%emt 0:08:31]} a4 {[%emt 0:01:37]} 20. Bc2 {[%emt 0:00:08]} Qb7 {[%emt 0:01:29]} 21. f3 {[%emt 0:00:47]} Bd5 {[%emt 0:00:45]} 22. a3 {[%emt 0:02:39]} Rxc2 {[%emt 0:03:24]} 23. Rxc2 {[%emt 0:02:36]} Bb3 {[%emt 0:00:04]} 24. Rd4 {[%emt 0:02:06]} Bxc2 {[%emt 0:00:55]} 25. Qxc2 {[%emt 0:00:05]} Rd8 {[%emt 0:04:05]} 26. Rd6 {[%emt 0:03:21]} Rxd6 {[%emt 0:10:18]} 27. exd6 {[%emt 0:00:07]} Qd5 {[%emt 0:00:06]} 28. h3 {[%emt 0:00:41]} f6 {[%emt 0:01:22]} 29. Qc7 {[%emt 0:01:01]} 1/2-1/2